[Event "Live Chess"]
[Site "Chess.com"]
[Date "2023.05.21"]
[Round "-"]
[White "RichardABates"]
[Black "AMCWAML"]
[Result "1-0"]
[WhiteElo "2155"]
[BlackElo "2269"]
[TimeControl "300"]
[EndTime "6:35:30 PDT"]
[Termination "RichardABates won on time"]

1. d4 {[%clk 0:04:58.3]} 1... Nf6 {[%clk 0:04:58.8]} 2. Nf3 {[%clk 0:04:56.4]}
2... e6 {[%clk 0:04:58.3]} 3. c4 {[%clk 0:04:54.7]} 3... c5 {[%clk 0:04:57.9]}
4. d5 {[%clk 0:04:53.3]} 4... exd5 {[%clk 0:04:56.8]} 5. cxd5 {[%clk 0:04:52]}
5... d6 {[%clk 0:04:56.4]} 6. Nc3 {[%clk 0:04:50.4]} 6... g6 {[%clk 0:04:55.8]}
7. Bf4 {[%clk 0:04:48.7]} 7... Bg7 {[%clk 0:04:53.3]} 8. e3 {[%clk 0:04:46.5]}
8... O-O {[%clk 0:04:52.7]} 9. h3 {[%clk 0:04:45.2]} 9... a6 {[%clk 0:04:47.4]}
10. a4 {[%clk 0:04:43]} 10... Re8 {[%clk 0:04:43.5]} 11. Nd2 {[%clk 0:04:27.9]}
11... Nbd7 {[%clk 0:04:01.9]} 12. Nc4 {[%clk 0:04:25.1]} 12... Ne5 {[%clk
0:03:48.7]} 13. Bxe5 {[%clk 0:04:22.9]} 13... dxe5 {[%clk 0:03:47.7]} 14. a5
{[%clk 0:04:21.7]} 14... Nd7 {[%clk 0:03:39.8]} 15. d6 {[%clk 0:04:12.7]} 15...
e4 {[%clk 0:03:27.9]} 16. Nd5 {[%clk 0:04:03.2]} 16... Rb8 {[%clk 0:03:26.7]}
17. Be2 {[%clk 0:03:58]} 17... Ne5 {[%clk 0:03:22.3]} 18. Ne7+ {[%clk
0:03:41.9]} 18... Rxe7 {[%clk 0:03:13]} 19. dxe7 {[%clk 0:03:39.8]} 19... Qxe7
{[%clk 0:03:12.9]} 20. Qd6 {[%clk 0:03:23.7]} 20... Qxd6 {[%clk 0:03:04.7]} 21.
Nxd6 {[%clk 0:03:22.3]} 21... Nd3+ {[%clk 0:02:47.5]} 22. Bxd3 {[%clk
0:03:14.5]} 22... exd3 {[%clk 0:02:47.4]} 23. Nxc8 {[%clk 0:03:10.2]} 23... Bxb2
{[%clk 0:02:42.3]} 24. Rd1 {[%clk 0:03:00.2]} 24... Bc3+ {[%clk 0:02:35.6]} 25.
Kf1 {[%clk 0:02:57.7]} 25... Rxc8 {[%clk 0:02:33.9]} 26. Rxd3 {[%clk 0:02:56.3]}
26... Bxa5 {[%clk 0:02:33.1]} 27. Ke2 {[%clk 0:02:53.4]} 27... c4 {[%clk
0:02:31.6]} 28. Rd5 {[%clk 0:02:51.6]} 28... b6 {[%clk 0:02:23.9]} 29. Rhd1
{[%clk 0:02:48.3]} 29... Kg7 {[%clk 0:02:15.2]} 30. Rd8 {[%clk 0:02:30.2]} 30...
Rc7 {[%clk 0:02:01]} 31. R1d7 {[%clk 0:02:25.9]} 31... b5 {[%clk 0:01:44]} 32.
Rxc7 {[%clk 0:02:22.2]} 32... Bxc7 {[%clk 0:01:40.8]} 33. Rd7 {[%clk 0:02:16.5]}
33... Bb6 {[%clk 0:01:36.7]} 34. Rd6 {[%clk 0:02:14.9]} 34... Bc5 {[%clk
0:01:31.6]} 35. Rxa6 {[%clk 0:02:03.4]} 35... Bf8 {[%clk 0:01:24.4]} 36. Rc6
{[%clk 0:01:59.7]} 36... h5 {[%clk 0:01:19.6]} 37. g4 {[%clk 0:01:55.7]} 37...
hxg4 {[%clk 0:01:18.2]} 38. hxg4 {[%clk 0:01:54.1]} 38... Ba3 {[%clk 0:01:16]}
39. Rb6 {[%clk 0:01:32]} 39... b4 {[%clk 0:01:11.5]} 40. Rc6 {[%clk 0:01:30.6]}
40... c3 {[%clk 0:01:10.1]} 41. Kd3 {[%clk 0:01:29.3]} 41... Kf8 {[%clk
0:01:03.6]} 42. Kc2 {[%clk 0:01:25.7]} 42... Ke7 {[%clk 0:00:56.8]} 43. f4
{[%clk 0:01:24.1]} 43... Kd7 {[%clk 0:00:53.1]} 44. Rf6 {[%clk 0:01:20.9]} 44...
Ke7 {[%clk 0:00:51.7]} 45. Ra6 {[%clk 0:01:19]} 45... f6 {[%clk 0:00:41.8]} 46.
e4 {[%clk 0:01:15.2]} 46... Kf7 {[%clk 0:00:40.2]} 47. e5 {[%clk 0:01:10.7]}
47... fxe5 {[%clk 0:00:38.2]} 48. fxe5 {[%clk 0:01:09.3]} 48... g5 {[%clk
0:00:35.6]} 49. Rf6+ {[%clk 0:01:06.1]} 49... Ke7 {[%clk 0:00:34.7]} 50. Rg6
{[%clk 0:01:04.2]} 50... Bb2 {[%clk 0:00:27.7]} 51. Rxg5 {[%clk 0:01:01.2]}
51... Ke6 {[%clk 0:00:27.5]} 52. Rf5 {[%clk 0:01:00.2]} 52... Ba3 {[%clk
0:00:20.4]} 53. Rf1 {[%clk 0:00:55.1]} 53... Kxe5 {[%clk 0:00:18.6]} 54. g5
{[%clk 0:00:53.9]} 54... b3+ {[%clk 0:00:07.5]} 55. Kxb3 {[%clk 0:00:51]} 55...
Be7 {[%clk 0:00:06.8]} 56. g6 {[%clk 0:00:48.8]} 56... Bf6 {[%clk 0:00:04.7]}
57. Kxc3 {[%clk 0:00:46.2]} 57... Bg7 {[%clk 0:00:01.9]} 58. Rf7 {[%clk
0:00:42.6]} 58... Ke6+ {[%clk 0:00:00.4]} 59. Rxg7 {[%clk 0:00:41.2]} 59... Kf6
{[%clk 0:00:00.3]} 60. Rg8 {[%clk 0:00:40.2]} 60... Kg5 {[%clk 0:00:00.2]} 61.
g7 {[%clk 0:00:38.6]} 61... Kh6 {[%clk 0:00:00.1]} 62. Kd4 {[%clk 0:00:36.2]}
1-0

[Event "Live Chess"]
[Site "Chess.com"]
[Date "2023.05.21"]
[Round "-"]
[White "WelshTiger"]
[Black "stevochess11"]
[Result "1-0"]
[WhiteElo "2319"]
[BlackElo "1701"]
[TimeControl "300"]
[EndTime "6:35:33 PDT"]
[Termination "WelshTiger won by resignation"]

1. e4 {[%clk 0:04:59.2]} 1... c5 {[%clk 0:04:58.6]} 2. Nf3 {[%clk 0:04:57.8]}
2... g6 {[%clk 0:04:57.8]} 3. d4 {[%clk 0:04:55.8]} 3... cxd4 {[%clk 0:04:54]}
4. Qxd4 {[%clk 0:04:55.7]} 4... Nf6 {[%clk 0:04:52.5]} 5. Nc3 {[%clk 0:04:54.2]}
5... Nc6 {[%clk 0:04:51.6]} 6. Qa4 {[%clk 0:04:53.6]} 6... Bg7 {[%clk
0:04:48.4]} 7. e5 {[%clk 0:04:52.1]} 7... Nd5 {[%clk 0:04:46.4]} 8. Nxd5 {[%clk
0:04:50.4]} 8... Bxe5 {[%clk 0:04:29.7]} 9. Nxe5 {[%clk 0:04:47.3]} 9... Nxe5
{[%clk 0:04:28.5]} 10. Bf4 {[%clk 0:04:44.9]} 10... Nc6 {[%clk 0:04:21]} 11.
Nc7+ {[%clk 0:04:42.4]} 11... Kf8 {[%clk 0:04:20]} 12. Nxa8 {[%clk 0:04:41.8]}
12... e5 {[%clk 0:04:16.6]} 13. Bd2 {[%clk 0:04:38]} 13... Nd4 {[%clk
0:04:13.6]} 14. O-O-O {[%clk 0:04:33.3]} 14... b5 {[%clk 0:04:09.6]} 15. Qxa7
{[%clk 0:04:30.5]} 15... Kg7 {[%clk 0:04:02.8]} 16. Nb6 {[%clk 0:04:20.7]} 16...
d5 {[%clk 0:03:47.5]} 17. Nxc8 {[%clk 0:04:15.2]} 17... Qxc8 {[%clk 0:03:46.6]}
18. c3 {[%clk 0:04:12.8]} 18... b4 {[%clk 0:03:40.2]} 19. Kb1 {[%clk 0:04:09.1]}
19... bxc3 {[%clk 0:03:38.7]} 20. Bxc3 {[%clk 0:04:08.2]} 20... Nb5 {[%clk
0:03:33.8]} 21. Bxb5 {[%clk 0:04:04.5]} 1-0

[Event "Live Chess"]
[Site "Chess.com"]
[Date "2023.05.21"]
[Round "-"]
[White "KeithArkell"]
[Black "friarnator"]
[Result "1-0"]
[WhiteElo "2486"]
[BlackElo "2031"]
[TimeControl "300"]
[EndTime "6:35:43 PDT"]
[Termination "KeithArkell won by resignation"]

1. d4 {[%clk 0:04:58.8]} 1... Nf6 {[%clk 0:04:56.9]} 2. Nf3 {[%clk 0:04:57.8]}
2... e6 {[%clk 0:04:49.5]} 3. c4 {[%clk 0:04:55.3]} 3... d5 {[%clk 0:04:48.7]}
4. cxd5 {[%clk 0:04:54.1]} 4... exd5 {[%clk 0:04:46.9]} 5. Nc3 {[%clk
0:04:53.4]} 5... c6 {[%clk 0:04:45.1]} 6. Qc2 {[%clk 0:04:51]} 6... Be7 {[%clk
0:04:41.6]} 7. Bg5 {[%clk 0:04:49.4]} 7... O-O {[%clk 0:04:38.3]} 8. e3 {[%clk
0:04:48.5]} 8... Ne4 {[%clk 0:04:30.9]} 9. Bxe7 {[%clk 0:04:42.3]} 9... Qxe7
{[%clk 0:04:30.8]} 10. Bd3 {[%clk 0:04:41.3]} 10... f5 {[%clk 0:04:19.4]} 11.
Ne5 {[%clk 0:04:39.8]} 11... Nd7 {[%clk 0:04:16.8]} 12. f4 {[%clk 0:04:28]}
12... Nxe5 {[%clk 0:04:10.8]} 13. dxe5 {[%clk 0:04:26.9]} 13... Qc5 {[%clk
0:03:57.9]} 14. Ke2 {[%clk 0:04:16]} 14... Nxc3+ {[%clk 0:03:53.6]} 15. Qxc3
{[%clk 0:04:13.7]} 15... Qxc3 {[%clk 0:03:51.7]} 16. bxc3 {[%clk 0:04:12.9]}
16... Be6 {[%clk 0:03:42.9]} 17. Rhc1 {[%clk 0:04:11.5]} 17... b5 {[%clk
0:03:41.9]} 18. a4 {[%clk 0:04:08.5]} 18... a6 {[%clk 0:03:37.4]} 19. Ra3 {[%clk
0:04:07.4]} 19... Rf7 {[%clk 0:03:35.1]} 20. Rca1 {[%clk 0:04:05.9]} 20... bxa4
{[%clk 0:02:15.1]} 21. Rxa4 {[%clk 0:04:01.8]} 21... Bc8 {[%clk 0:02:14.1]} 22.
Bxa6 {[%clk 0:03:58.5]} 22... Rfa7 {[%clk 0:02:09.2]} 23. Bb5 {[%clk 0:03:57.7]}
23... Rxa4 {[%clk 0:02:08.2]} 24. Rxa4 {[%clk 0:03:56.7]} 24... Rxa4 {[%clk
0:02:07.4]} 25. Bxa4 {[%clk 0:03:55.9]} 25... Bb7 {[%clk 0:02:03.9]} 26. c4
{[%clk 0:03:31.7]} 26... Ba6 {[%clk 0:01:55.3]} 27. Bxc6 {[%clk 0:03:29.3]}
27... Bxc4+ {[%clk 0:01:52.3]} 28. Kd2 {[%clk 0:03:28.6]} 28... Kf7 {[%clk
0:01:51.7]} 29. Kc3 {[%clk 0:03:27.2]} 29... Ke6 {[%clk 0:01:50.4]} 30. Kd4
{[%clk 0:03:26.5]} 30... h6 {[%clk 0:01:45.8]} 31. g3 {[%clk 0:03:23.5]} 31...
Bb3 {[%clk 0:01:40.1]} 32. Bb5 {[%clk 0:03:20.2]} 32... Ba2 {[%clk 0:01:35.7]}
33. Be2 {[%clk 0:03:16.5]} 33... Bb3 {[%clk 0:01:31.9]} 34. g4 {[%clk
0:03:13.2]} 34... g6 {[%clk 0:01:28.6]} 35. Bf3 {[%clk 0:03:09.5]} 35... Bc4
{[%clk 0:01:17.5]} 36. h4 {[%clk 0:03:03]} 36... Bb3 {[%clk 0:01:02.7]} 37.
gxf5+ {[%clk 0:02:15.3]} 37... gxf5 {[%clk 0:00:56.5]} 38. Be2 {[%clk 0:02:14]}
38... Kd7 {[%clk 0:00:32.7]} 39. Ba6 {[%clk 0:02:08]} 39... Ba2 {[%clk
0:00:20.9]} 40. Bb7 {[%clk 0:02:04.1]} 1-0

[Event "Live Chess"]
[Site "Chess.com"]
[Date "2023.05.21"]
[Round "-"]
[White "1600x"]
[Black "shohrehbayat"]
[Result "1-0"]
[WhiteElo "1902"]
[BlackElo "2043"]
[TimeControl "300"]
[EndTime "6:36:02 PDT"]
[Termination "1600x won by resignation"]

1. e4 {[%clk 0:04:55.7]} 1... e6 {[%clk 0:04:59.6]} 2. Qe2 {[%clk 0:04:49]} 2...
e5 {[%clk 0:04:55.3]} 3. Nc3 {[%clk 0:04:47.9]} 3... Nc6 {[%clk 0:04:53.4]} 4.
b3 {[%clk 0:04:41.6]} 4... Nf6 {[%clk 0:04:52]} 5. Bb2 {[%clk 0:04:40.2]} 5...
Bc5 {[%clk 0:04:50.9]} 6. Nf3 {[%clk 0:04:37.9]} 6... O-O {[%clk 0:04:46.4]} 7.
h3 {[%clk 0:04:33.4]} 7... Nd4 {[%clk 0:04:45.1]} 8. Qd3 {[%clk 0:04:30]} 8...
d6 {[%clk 0:04:24.4]} 9. Nxd4 {[%clk 0:04:06.1]} 9... Bxd4 {[%clk 0:04:23.2]}
10. Be2 {[%clk 0:04:03.6]} 10... d5 {[%clk 0:04:17.5]} 11. exd5 {[%clk
0:03:28.5]} 11... Nxd5 {[%clk 0:04:10.2]} 12. Nxd5 {[%clk 0:03:16.1]} 12... Qxd5
{[%clk 0:04:10.1]} 13. Bf3 {[%clk 0:03:14.5]} 13... Qc5 {[%clk 0:04:01.8]} 14.
O-O-O {[%clk 0:03:12.1]} 14... Bxb2+ {[%clk 0:03:54.8]} 15. Kxb2 {[%clk
0:03:10.4]} 15... Qxf2 {[%clk 0:03:53.2]} 16. Rde1 {[%clk 0:03:03.4]} 16... Qd4+
{[%clk 0:03:51]} 17. Qxd4 {[%clk 0:03:00.7]} 17... exd4 {[%clk 0:03:50.9]} 18.
Re7 {[%clk 0:02:58.3]} 18... c5 {[%clk 0:03:38.7]} 19. Rf1 {[%clk 0:02:55.5]}
19... Rb8 {[%clk 0:03:35.3]} 20. Bd5 {[%clk 0:02:50.1]} 20... Be6 {[%clk
0:03:28.5]} 21. Bxb7 {[%clk 0:02:48]} 21... Rfe8 {[%clk 0:03:21.2]} 22. Rc7
{[%clk 0:02:45.3]} 22... c4 {[%clk 0:03:08.3]} 23. Re1 {[%clk 0:02:43]} 23...
cxb3 {[%clk 0:03:02.4]} 24. cxb3 {[%clk 0:02:41.1]} 24... Kf8 {[%clk 0:02:56]}
25. Bc6 {[%clk 0:02:38.5]} 25... Re7 {[%clk 0:02:53.4]} 26. Rxe7 {[%clk
0:02:36.8]} 26... Kxe7 {[%clk 0:02:53.3]} 27. Kc2 {[%clk 0:02:35]} 27... Kd6
{[%clk 0:02:51.1]} 28. Be4 {[%clk 0:02:33.4]} 28... f5 {[%clk 0:02:46.4]} 29.
Bd3 {[%clk 0:02:30.6]} 29... Re8 {[%clk 0:02:44.2]} 30. Bc4 {[%clk 0:02:29.4]}
30... Rc8 {[%clk 0:02:41.7]} 31. Rxe6+ {[%clk 0:02:16.1]} 31... Kd7 {[%clk
0:02:40.2]} 32. Ra6 {[%clk 0:02:14.8]} 1-0

[Event "Live Chess"]
[Site "Chess.com"]
[Date "2023.05.21"]
[Round "-"]
[White "Biranidun"]
[Black "Nazar_777"]
[Result "1-0"]
[WhiteElo "2515"]
[BlackElo "1566"]
[TimeControl "300"]
[EndTime "6:36:04 PDT"]
[Termination "Biranidun won by checkmate"]

1. e4 {[%clk 0:04:59.1]} 1... e6 {[%clk 0:04:48.2]} 2. d4 {[%clk 0:04:58.1]}
2... a6 {[%clk 0:04:47.6]} 3. Nc3 {[%clk 0:04:58]} 3... h5 {[%clk 0:04:46.6]} 4.
Nf3 {[%clk 0:04:57.5]} 4... c5 {[%clk 0:04:46.1]} 5. d5 {[%clk 0:04:56.6]} 5...
Nf6 {[%clk 0:04:44.9]} 6. a4 {[%clk 0:04:54.3]} 6... c4 {[%clk 0:04:43.8]} 7. d6
{[%clk 0:04:52.9]} 7... Nc6 {[%clk 0:04:41.7]} 8. Bxc4 {[%clk 0:04:48.8]} 8...
b6 {[%clk 0:04:40]} 9. O-O {[%clk 0:04:47.2]} 9... Bb7 {[%clk 0:04:38.8]} 10. e5
{[%clk 0:04:46.7]} 10... Ng4 {[%clk 0:04:37.4]} 11. Bf4 {[%clk 0:04:44.2]} 11...
Qc8 {[%clk 0:04:36.2]} 12. Qe2 {[%clk 0:04:42.7]} 12... Na5 {[%clk 0:04:34.2]}
13. Bd3 {[%clk 0:04:41.1]} 13... Nc6 {[%clk 0:04:32.5]} 14. h3 {[%clk
0:04:39.5]} 14... Nh6 {[%clk 0:04:30.7]} 15. Qe3 {[%clk 0:04:32.9]} 15... g6
{[%clk 0:04:29.3]} 16. Qxb6 {[%clk 0:04:30.3]} 16... Nf5 {[%clk 0:04:26.8]} 17.
Ne4 {[%clk 0:04:29.2]} 17... Bg7 {[%clk 0:04:24.5]} 18. Rfe1 {[%clk 0:04:25.4]}
18... Rb8 {[%clk 0:04:23.2]} 19. Qc5 {[%clk 0:04:18.9]} 19... Na5 {[%clk
0:04:04.9]} 20. Qxa5 {[%clk 0:04:16.4]} 20... Bxe4 {[%clk 0:04:00.7]} 21. Bxe4
{[%clk 0:04:14.8]} 21... f6 {[%clk 0:03:49.8]} 22. exf6 {[%clk 0:04:13]} 22...
Bxf6 {[%clk 0:03:48.5]} 23. Bxf5 {[%clk 0:04:12.7]} 23... gxf5 {[%clk
0:03:46.5]} 24. Qxf5 {[%clk 0:04:12.6]} 24... Kf7 {[%clk 0:03:41.1]} 25. Ne5+
{[%clk 0:04:11.5]} 25... Kg7 {[%clk 0:03:36.3]} 26. Qg6+ {[%clk 0:04:10.8]}
26... Kf8 {[%clk 0:03:34.3]} 27. Qf7# {[%clk 0:04:10.7]} 1-0

[Event "Live Chess"]
[Site "Chess.com"]
[Date "2023.05.21"]
[Round "-"]
[White "lateforthesky"]
[Black "Conradical12"]
[Result "1-0"]
[WhiteElo "2111"]
[BlackElo "1583"]
[TimeControl "300"]
[EndTime "6:36:15 PDT"]
[Termination "lateforthesky won by resignation"]

1. e4 {[%clk 0:04:56.5]} 1... e5 {[%clk 0:04:58.2]} 2. f4 {[%clk 0:04:51.6]}
2... exf4 {[%clk 0:04:49.2]} 3. Nf3 {[%clk 0:04:49.7]} 3... g5 {[%clk
0:04:48.6]} 4. Bc4 {[%clk 0:04:48]} 4... h6 {[%clk 0:04:47.2]} 5. d4 {[%clk
0:04:39.2]} 5... Bg7 {[%clk 0:04:45.7]} 6. h4 {[%clk 0:04:31.9]} 6... g4 {[%clk
0:04:40.1]} 7. Ne5 {[%clk 0:04:29.7]} 7... Bxe5 {[%clk 0:04:38.4]} 8. dxe5
{[%clk 0:04:28.3]} 8... d6 {[%clk 0:04:32.3]} 9. Bxf4 {[%clk 0:04:19.2]} 9...
Nc6 {[%clk 0:04:22.9]} 10. exd6 {[%clk 0:04:09.9]} 10... cxd6 {[%clk 0:04:21.4]}
11. Nc3 {[%clk 0:03:51.8]} 1-0

[Event "Live Chess"]
[Site "Chess.com"]
[Date "2023.05.21"]
[Round "-"]
[White "MJMykh"]
[Black "EdenHazard8"]
[Result "0-1"]
[WhiteElo "1162"]
[BlackElo "1983"]
[TimeControl "300"]
[EndTime "6:36:22 PDT"]
[Termination "EdenHazard8 won by resignation"]

1. e4 {[%clk 0:04:58.7]} 1... c6 {[%clk 0:04:53.7]} 2. Nf3 {[%clk 0:04:57.6]}
2... d5 {[%clk 0:04:53.6]} 3. exd5 {[%clk 0:04:55.6]} 3... cxd5 {[%clk
0:04:53.5]} 4. d4 {[%clk 0:04:54.9]} 4... Nc6 {[%clk 0:04:51.5]} 5. Nc3 {[%clk
0:04:54.1]} 5... Bg4 {[%clk 0:04:49.6]} 6. Bb5 {[%clk 0:04:52.8]} 6... e6 {[%clk
0:04:47.4]} 7. Bxc6+ {[%clk 0:04:50.7]} 7... bxc6 {[%clk 0:04:45.7]} 8. O-O
{[%clk 0:04:50.3]} 8... Bd6 {[%clk 0:04:44.2]} 9. h3 {[%clk 0:04:47.7]} 9... Bh5
{[%clk 0:04:42.2]} 10. Qd3 {[%clk 0:04:47.3]} 10... Bc7 {[%clk 0:04:40.5]} 11.
Bg5 {[%clk 0:04:43.5]} 11... Qd6 {[%clk 0:04:38.7]} 12. Ne5 {[%clk 0:04:39.1]}
12... f6 {[%clk 0:04:32.4]} 13. Bf4 {[%clk 0:04:37.6]} 13... fxe5 {[%clk
0:04:30.4]} 14. Bxe5 {[%clk 0:04:36.1]} 14... Qe7 {[%clk 0:04:29]} 15. Bxc7
{[%clk 0:04:32.8]} 15... Qxc7 {[%clk 0:04:28.9]} 16. Na4 {[%clk 0:04:28.2]}
16... Nf6 {[%clk 0:04:24]} 17. Nc5 {[%clk 0:04:27]} 17... Qe7 {[%clk 0:04:17.6]}
18. Qe3 {[%clk 0:04:23.8]} 18... Ne4 {[%clk 0:03:58.3]} 19. f3 {[%clk 0:04:13]}
19... Nxc5 {[%clk 0:03:52.2]} 20. dxc5 {[%clk 0:04:10.1]} 20... O-O {[%clk
0:03:49.5]} 21. Rfe1 {[%clk 0:04:07.8]} 21... Rf6 {[%clk 0:03:42.6]} 22. Qg5
{[%clk 0:04:03.8]} 22... Bg6 {[%clk 0:03:39.3]} 23. c3 {[%clk 0:03:57.4]} 23...
Raf8 {[%clk 0:03:35.4]} 24. Qe3 {[%clk 0:03:50.4]} 24... Qc7 {[%clk 0:03:26.4]}
25. Qe5 {[%clk 0:03:45.2]} 25... Qf7 {[%clk 0:03:17.6]} 26. Qe2 {[%clk
0:03:38.1]} 26... Bf5 {[%clk 0:03:15.2]} 27. Kh2 {[%clk 0:03:34.4]} 27... Rh6
{[%clk 0:03:11.5]} 28. g4 {[%clk 0:03:28.4]} 28... Bg6 {[%clk 0:03:06.7]} 29.
Rf1 {[%clk 0:03:26.7]} 29... Qf4+ {[%clk 0:03:04.7]} 30. Kg2 {[%clk 0:03:24.5]}
30... e5 {[%clk 0:03:03.3]} 31. Qf2 {[%clk 0:03:22.4]} 31... e4 {[%clk
0:03:01.6]} 32. fxe4 {[%clk 0:03:15.1]} 32... Bxe4+ {[%clk 0:03:01.5]} 33. Kg1
{[%clk 0:03:14.1]} 33... Qxf2+ {[%clk 0:02:59.4]} 34. Rxf2 {[%clk 0:03:13]}
34... Rxf2 {[%clk 0:02:59.3]} 35. Kxf2 {[%clk 0:03:12.2]} 35... Rxh3 {[%clk
0:02:56.8]} 36. Rb1 {[%clk 0:03:07.1]} 36... Bxb1 {[%clk 0:02:54.6]} 0-1

[Event "Live Chess"]
[Site "Chess.com"]
[Date "2023.05.21"]
[Round "-"]
[White "AyannaTang"]
[Black "ClassyChameleon"]
[Result "0-1"]
[WhiteElo "230"]
[BlackElo "1083"]
[TimeControl "300"]
[EndTime "6:36:41 PDT"]
[Termination "ClassyChameleon won by checkmate"]

1. e4 {[%clk 0:04:57.7]} 1... e5 {[%clk 0:04:59.2]} 2. d4 {[%clk 0:04:55.3]}
2... d6 {[%clk 0:04:54.2]} 3. Bc4 {[%clk 0:04:48.9]} 3... Nc6 {[%clk 0:04:48.6]}
4. h4 {[%clk 0:04:42]} 4... Nxd4 {[%clk 0:04:45.9]} 5. c3 {[%clk 0:04:33.7]}
5... Ne6 {[%clk 0:04:44.4]} 6. Bg5 {[%clk 0:04:30.7]} 6... Nxg5 {[%clk
0:04:40.9]} 7. hxg5 {[%clk 0:04:29.5]} 7... Be6 {[%clk 0:04:28.4]} 8. Bxe6
{[%clk 0:04:27.3]} 8... fxe6 {[%clk 0:04:27.5]} 9. Nd2 {[%clk 0:04:25]} 9...
Qxg5 {[%clk 0:04:26]} 10. Nc4 {[%clk 0:04:22.9]} 10... O-O-O {[%clk 0:04:23.1]}
11. Rh5 {[%clk 0:04:13]} 11... Qf4 {[%clk 0:04:07.9]} 12. Qd2 {[%clk 0:03:55.1]}
12... Qxe4+ {[%clk 0:03:53.9]} 13. Ne2 {[%clk 0:03:49.5]} 13... Qxc4 {[%clk
0:03:48.9]} 14. O-O-O {[%clk 0:03:44.5]} 14... Qxa2 {[%clk 0:03:44.7]} 15. Rhh1
{[%clk 0:03:35.1]} 15... Nf6 {[%clk 0:03:40]} 16. b4 {[%clk 0:03:28.9]} 16...
Qd5 {[%clk 0:03:30.6]} 17. Qxd5 {[%clk 0:03:24.5]} 17... Nxd5 {[%clk 0:03:28.2]}
18. c4 {[%clk 0:03:17.1]} 18... Nxb4 {[%clk 0:03:26.8]} 19. Kd2 {[%clk
0:03:01.2]} 19... d5 {[%clk 0:03:23.8]} 20. cxd5 {[%clk 0:02:54]} 20... exd5
{[%clk 0:03:22.8]} 21. Ra1 {[%clk 0:02:48.1]} 21... Nc6 {[%clk 0:03:19.4]} 22.
Rh3 {[%clk 0:02:42.7]} 22... d4 {[%clk 0:03:15.4]} 23. Rha3 {[%clk 0:02:40.2]}
23... Bxa3 {[%clk 0:03:13.8]} 24. Rxa3 {[%clk 0:02:37.7]} 24... Rhf8 {[%clk
0:03:06.9]} 25. Ke1 {[%clk 0:02:31.7]} 25... e4 {[%clk 0:02:59.2]} 26. Ra4
{[%clk 0:02:26.9]} 26... e3 {[%clk 0:02:54]} 27. fxe3 {[%clk 0:02:24.9]} 27...
dxe3 {[%clk 0:02:53.1]} 28. Nd4 {[%clk 0:02:18.2]} 28... Nxd4 {[%clk 0:02:51.5]}
29. Rxa7 {[%clk 0:02:15.7]} 29... e2 {[%clk 0:02:44.9]} 30. Ra8+ {[%clk
0:02:09.1]} 30... Kd7 {[%clk 0:02:43.6]} 31. Rxd8+ {[%clk 0:01:54]} 31... Kxd8
{[%clk 0:02:41.9]} 32. g4 {[%clk 0:01:50.6]} 32... Kd7 {[%clk 0:02:37.6]} 33.
Kd2 {[%clk 0:01:47.5]} 33... Re8 {[%clk 0:02:34.7]} 34. Kd3 {[%clk 0:01:45.2]}
34... e1=Q {[%clk 0:02:33.4]} 35. Kxd4 {[%clk 0:01:43.9]} 35... Qd1+ {[%clk
0:02:32.8]} 36. Kc3 {[%clk 0:01:42.2]} 36... Re3+ {[%clk 0:02:31.4]} 37. Kb2
{[%clk 0:01:40.4]} 37... Qb3+ {[%clk 0:02:30.1]} 38. Kc1 {[%clk 0:01:38.9]}
38... Re1+ {[%clk 0:02:29.1]} 39. Kd2 {[%clk 0:01:37.7]} 39... Qe3+ {[%clk
0:02:27.8]} 40. Kc2 {[%clk 0:01:36.4]} 40... Re2+ {[%clk 0:02:24.9]} 41. Kd1
{[%clk 0:01:34.8]} 41... Qd2# {[%clk 0:02:23.1]} 0-1

[Event "Live Chess"]
[Site "Chess.com"]
[Date "2023.05.21"]
[Round "-"]
[White "ameetghasi100"]
[Black "mliszewski"]
[Result "1-0"]
[WhiteElo "2580"]
[BlackElo "1810"]
[TimeControl "300"]
[EndTime "6:36:41 PDT"]
[Termination "ameetghasi100 won by checkmate"]

1. c4 {[%clk 0:04:59.8]} 1... b6 {[%clk 0:04:58.5]} 2. e4 {[%clk 0:04:57.8]}
2... Bb7 {[%clk 0:04:57.8]} 3. f3 {[%clk 0:04:57.7]} 3... e6 {[%clk 0:04:55.7]}
4. Nc3 {[%clk 0:04:57.6]} 4... Nf6 {[%clk 0:04:52.4]} 5. d4 {[%clk 0:04:57.1]}
5... Bb4 {[%clk 0:04:49.7]} 6. Ne2 {[%clk 0:04:55.4]} 6... O-O {[%clk
0:04:47.9]} 7. g4 {[%clk 0:04:48.7]} 7... d5 {[%clk 0:04:44.4]} 8. cxd5 {[%clk
0:04:46.8]} 8... exd5 {[%clk 0:04:43.5]} 9. e5 {[%clk 0:04:46.7]} 9... Nfd7
{[%clk 0:04:41.9]} 10. Be3 {[%clk 0:04:45.6]} 10... c5 {[%clk 0:04:39.4]} 11. f4
{[%clk 0:04:45.2]} 11... Nc6 {[%clk 0:04:34.5]} 12. Bg2 {[%clk 0:04:43.5]} 12...
cxd4 {[%clk 0:04:31.5]} 13. Nxd4 {[%clk 0:04:40.2]} 13... Nxd4 {[%clk
0:04:30.4]} 14. Bxd4 {[%clk 0:04:40.1]} 14... Nc5 {[%clk 0:04:25.2]} 15. O-O
{[%clk 0:04:38.6]} 15... Bxc3 {[%clk 0:04:22.5]} 16. Bxc3 {[%clk 0:04:38.5]}
16... Ne4 {[%clk 0:04:19.9]} 17. Bd4 {[%clk 0:04:35.9]} 17... Qh4 {[%clk
0:04:15.8]} 18. Qe2 {[%clk 0:04:35.2]} 18... Rfc8 {[%clk 0:04:12.7]} 19. Rac1
{[%clk 0:04:33.2]} 19... h6 {[%clk 0:04:09.4]} 20. Bf3 {[%clk 0:04:27.3]} 20...
a5 {[%clk 0:03:55.9]} 21. Rfd1 {[%clk 0:04:22.1]} 21... Rxc1 {[%clk 0:03:33.9]}
22. Rxc1 {[%clk 0:04:21]} 22... Qh3 {[%clk 0:03:29.6]} 23. Bg2 {[%clk
0:04:16.1]} 23... Qh4 {[%clk 0:03:25]} 24. Rc7 {[%clk 0:04:15.5]} 24... Ba6
{[%clk 0:03:22.5]} 25. Qd1 {[%clk 0:04:12.4]} 25... Rc8 {[%clk 0:03:10.5]} 26.
Rxc8+ {[%clk 0:04:09]} 26... Bxc8 {[%clk 0:03:09.6]} 27. f5 {[%clk 0:03:58.2]}
27... Bb7 {[%clk 0:03:02.6]} 28. Bxb6 {[%clk 0:03:54.6]} 28... Qg5 {[%clk
0:02:52.7]} 29. Bd4 {[%clk 0:03:45]} 29... Qf4 {[%clk 0:02:45.8]} 30. e6 {[%clk
0:03:34.1]} 30... fxe6 {[%clk 0:02:42]} 31. fxe6 {[%clk 0:03:34]} 31... Qd6
{[%clk 0:02:36.4]} 32. Qb3 {[%clk 0:03:14.8]} 32... Ba6 {[%clk 0:02:14.7]} 33.
Bxe4 {[%clk 0:03:09.4]} 33... Bc4 {[%clk 0:02:08.2]} 34. e7 {[%clk 0:03:06.8]}
34... Qxe7 {[%clk 0:01:52.3]} 35. Bxd5+ {[%clk 0:03:01]} 35... Bxd5 {[%clk
0:01:52.2]} 36. Qxd5+ {[%clk 0:02:59.6]} 36... Kh7 {[%clk 0:01:51.9]} 37. Qe5
{[%clk 0:02:59.3]} 37... Qb4 {[%clk 0:01:49.7]} 38. Qxg7# {[%clk 0:02:58.2]} 1-0